Cogmind - Beta 14 @@@ ROGUE MODE // 2024.08.23 @ 13:42:34 Player: monkeman Result: Destroyed by W1-R5Y(R) with Subdweller Beam Cannon Performance ------------- Evolutions (0) 0 Regions Visited (2) 400 Robots Destroyed (21) 105 Value Destroyed (484) 484 Prototype IDs (13) 260 Alien Tech Used (0) 0 Bonus (-98) -98 TOTAL SCORE: 1151 Bonus ------- Friendly Fire -98 Cogmind --------- Core Integrity 0/250 Matter 290/300 Energy 239/265 System Corruption 0% Temperature Cool (9) Movement Treading (160) Location -10/Subcaves Parts ------- > --- POWER (1) -------- Improved Ion Engine > --- PROPULSION (2) --- Light Treads Light Treads > --- UTILITY (2) ------ Large Storage Unit Seismic Detector > --- WEAPON (2) ------- EM Pulse Gun Battle Cannon > --- INVENTORY (15) --- Ion Engine Light Nuclear Core Light Treads Flightbrick High-capacity Matter Pod (200) Hacking Suite Beam Rifle Heavy Assault Rifle Heavy Assault Rifle Heavy Assault Rifle Plasma Cutter Multitool Peak State ------------ > --- POWER ------------ Improved Ion Engine > --- PROPULSION ------- Light Treads Light Treads > --- UTILITY ---------- Large Storage Unit Seismic Detector > --- WEAPON ----------- EM Pulse Gun Battle Cannon > --- INVENTORY -------- Ion Engine Light Nuclear Core Light Treads Flightbrick High-capacity Matter Pod Hacking Suite Beam Rifle Heavy Assault Rifle Heavy Assault Rifle Heavy Assault Rifle Plasma Cutter Multitool [Rating: 14] Favorites ----------- Power Light Ion Engine Engine Light Ion Engine Propulsion Light Treads Treads Light Treads Utility Large Storage Unit Device Seismic Detector Storage Large Storage Unit Weapon Assault Rifle Energy Gun EM Pulse Gun Ballistic Gun Assault Rifle Ballistic Cannon Battle Cannon Special Weapon Mining Laser Build | -11 -10 -10 ------- Run | Yrd Mat Sub Slots Evolved . | . . . Power . | . . . Propulsion . | . . . Utility . | . . . Weapon . | . . . Parts Attached 20 | 7 7 6 Power 3 | 1 . 2 Engine 3 | 1 . 2 Core . | . . . Reactor . | . . . Propulsion 4 | 2 . 2 Treads 4 | 2 . 2 Leg . | . . . Wheel . | . . . Hover . | . . . Flight . | . . . Utility 5 | 2 3 . Device 2 | 1 1 . Storage 3 | 1 2 . Processor . | . . . Hackware . | . . . Protection . | . . . Artifact . | . . . Weapon 8 | 2 4 2 Energy Gun 1 | . . 1 Energy Cannon . | . . . Ballistic Gun 5 | 2 3 . Ballistic Cannon 1 | . . 1 Launcher . | . . . Special Weapon 1 | . 1 . Impact Weapon . | . . . Slashing Weapon . | . . . Piercing Weapon . | . . . Special Melee Weapon . | . . . Unidentified Prototypes . | . . . Parts Lost 4 | . 1 3 Power . | . . . Propulsion 2 | . . 2 Utility 1 | . 1 . Weapon 1 | . . 1 Highest Loss Streak 2 | . 1 2 To Critical Strikes . | . . . Average Slot Usage (%) 99 | . 99 100 Engine 14 | . 14 14 Treads 28 | . 28 28 Device 13 | . 13 14 Storage 14 | . 14 14 Energy Gun 5 | . . 13 Ballistic Gun 18 | . 27 6 Ballistic Cannon 3 | . . 8 Peak Build Rating 14 | 9 11 14 Average Rating 10 | 5 10 11 On Entrance 6 | . 9 11 Naked Turns . | . . . Heaviest Build 33 | 13 30 33 Greatest Support 40 | 40 40 40 Greatest Overweight (x) 3 | 3 . . Average Overweight (x) . | . . . Largest Inventory Capacity 15 | 8 15 15 Average Capacity 13 | 7 12 15 Most Carried 15 | 5 15 15 Average Carried 12 | 3 11 14 Final Capacity 15 | 8 15 15 Final Carried 15 | 5 15 15 Class Distribution -------------------- 100% | Mutant Dominant Class ---------------- Mutant | -10/Materials Mutant | -10/Subcaves Resources | -11 -10 -10 ----------- Run | Yrd Mat Sub Matter Collected 989 | 315 445 229 Remotely . | . . . Salvage Created 699 | 106 421 172 Parts 49 | 2 33 14 Haulers Intercepted 1 | . 1 . Recyclers Shooed . | . . . Parts Field Recycled . | . . . Retrieved Matter . | . . . Parts Self-Destructed 8 | . . 8 Prevented . | . . . Kills | -11 -10 -10 ------- Run | Yrd Mat Sub Combat Hostiles Destroyed 14 | . 9 5 Guns 11 | . 9 2 Cannons 3 | . . 3 Classes Destroyed 10 | 2 5 3 Tunneler 1 | 1 . . Hauler 1 | . 1 . Recycler 1 | 1 . . Operator 1 | . 1 . Watcher 3 | . 3 . Swarmer 5 | . 3 2 Grunt 6 | . 6 . Sentry 1 | . . 1 Artisan 1 | . . 1 Subdweller 2 | . . 2 Best Kill Streak 3 | 1 3 2 Combat Bots Only 3 | . 3 2 Max Kills in Single Turn 1 | 1 1 1 Gunslinging . | . . . Exploded . | . . . Melee . | . . . Uniques/NPCs Destroyed . | . . . Combat | -11 -10 -10 -------- Run | Yrd Mat Sub Hostile Shots Fired 96 | . 52 44 Missed 21 | . 9 12 Damage Taken 1138 | . 466 672 Core 261 | . 91 170 Absorbed by Shields . | . . . Core Remaining (%) 100 | 100 . . Volleys Fired 86 | 8 52 26 Largest 2 | 2 2 2 Hottest 100 | 40 100 79 Shots Fired 156 | 16 95 45 Gun 133 | 16 86 31 Cannon 14 | . . 14 Launcher . | . . . Special 9 | . 9 . Kinetic 134 | 16 86 32 Thermal 9 | . 9 . Explosive . | . . . Electromagnetic 13 | . . 13 Robot Hit Streak 14 | 5 8 14 Robot Miss Streak 6 | 1 6 1 Penetration Max . | . . . Secondary Targets 1 | . . 1 Max Gunslinging Chain 1 | . . 1 Shots Hit Robots 98 | 11 53 34 Core Hits 36 | 2 25 9 Critical Kills 1 | . 1 . Critical Parts Destroyed . | . . . Critical Strikes 1 | . 1 . Destroy 1 | . 1 . Melee Attacks . | . . . Impact . | . . . Slashing . | . . . Piercing . | . . . Sneak Attacks . | . . . Combat Hostiles . | . . . Follow-up Attacks . | . . . Damage Inflicted 1408 | 148 735 525 Guns 1186 | 148 728 310 Cannons 215 | . . 215 Explosions . | . . . Melee . | . . . Ramming 7 | . 7 . Kinetic 1303 | 148 728 427 Thermal . | . . . Explosive . | . . . Electromagnetic 98 | . . 98 Impact . | . . . Slashing . | . . . Piercing . | . . . Highest Corruption . | . . . Average Corruption . | . . . Corruption Purged . | . . . Corruption Blocked . | . . . Overload Shots . | . . . Overflow Damage . | . . . Projectiles . | . . . Explosions . | . . . Melee . | . . . Knockbacks 1 | . . 1 Impact . | . . . Kinetic 1 | . . 1 Secondary . | . . . Self-Inflicted Damage . | . . . Shots . | . . . Rammed 4 | . 4 . Targets Rammed 4 | . 4 . Kicked . | . . . Crushed . | . . . Highest Temperature 142 | . 142 . Average Temperature 62 | . 62 . Received Heat Transfer 297 | . 186 111 Siege Activations . | . . . Robots Corrupted . | . . . Combat Hostiles . | . . . Parts Fried . | . . . Impact Corruptions . | . . . Robots Melted . | . . . Combat Hostiles . | . . . Parts Melted . | . . . Heat Transferred . | . . . Parts Sabotaged . | . . . Parts Stolen . | . . . Parts Stripped . | . . . Power Chain Reactions . | . . . Alert | -11 -10 -10 ------- Run | Yrd Mat Sub Peak Influence 143 | 10 143 . Initial 6 | . 6 . Average 63 | 2 69 . Maximum Alert Level . | . . . Low Security (%) 100 | 100 100 . Level 1 . | . . . Level 2 . | . . . Level 3 . | . . . Level 4 . | . . . Level 5 . | . . . High Security . | . . . Max Security . | . . . Squads Dispatched . | . . . Investigation . | . . . Extermination . | . . . Reinforcement . | . . . Assault . | . . . Garrison . | . . . Intercept . | . . . Searches Triggered . | . . . Construction Impeded . | . . . Haulers Reinforced . | . . . Active Scanning Responses . | . . . Cargo Convoy Interrupts . | . . . Stealth | -11 -10 -10 --------- Run | Yrd Mat Sub Distress Signals 1 | . 1 . Communications Jammed . | . . . Distress Signals . | . . . Times Spotted 24 | . 18 6 Peak Tracking Total 3 | . 3 2 Tactical Retreats 2 | . 2 . Traps | -11 -10 -10 ------- Run | Yrd Mat Sub Traps Triggered . | . . . Indirectly . | . . . Trap Hack Attempts . | . . . Triggered . | . . . Disarmed . | . . . Reprogrammed . | . . . Reused . | . . . Traps Extracted . | . . . Installed . | . . . Triggered . | . . . Machines | -11 -10 -10 ---------- Run | Yrd Mat Sub Machines Disabled 4 | . 1 3 Max in Single Turn 1 | . 1 1 Machines Repaired . | . . . Machines Dismantled . | . . . Machines Sabotaged . | . . . Overloaded Fab Kills . | . . . Hacking | -11 -10 -10 --------- Run | Yrd Mat Sub Machines Accessed 5 | . 4 1 Terminals 4 | . 4 . Fabricators . | . . . Repair Stations . | . . . Recycling Units . | . . . Scanalyzers . | . . . Garrison Access . | . . . Total Hacks 21 | . 20 1 Successful 11 | . 10 1 Failed 10 | . 10 . Catastrophic 1 | . 1 . Database Lockouts . | . . . Manual 9 | . 9 . Terminals 20 | . 20 . Fabricators . | . . . Repair Stations . | . . . Recycling Units . | . . . Scanalyzers . | . . . Garrison Access . | . . . Terminal Hacks 10 | . 9 1 Part Schematic 2 | . 2 . Robot Analysis 2 | . 2 . Prototype ID Bank 1 | . 1 . Locate Traps 2 | . 2 . Hauler Manifests 1 | . 1 . Zone Layout 1 | . 1 . Derelict Proto ID Bank 1 | . . 1 Fabricator Hacks . | . . . Repair Station Hacks . | . . . Recycling Unit Hacks . | . . . Scanalyzer . | . . . Garrison Access Hacks . | . . . Unauthorized Hacks 1 | . 1 . Terminals 1 | . 1 . Botnet 1 | . 1 . Fabricators . | . . . Repair Stations . | . . . Recycling Units . | . . . Scanalyzers . | . . . Garrison Access . | . . . Data Cores Recovered 1 | . 1 . Used 1 | . 1 . Hacking Detections 4 | . 4 . Full Trace Events . | . . . Feedback Events . | . . . Feedback Blocked . | . . . Robot Schematics Acquired . | . . . Robots Built . | . . . Authchips . | . . . Time . | . . . Total Robot Build Rating . | . . . Part Schematics Acquired 2 | . 2 . Parts Built . | . . . Authchips . | . . . Time . | . . . Total Part Build Rating . | . . . Parts Repaired . | . . . Time . | . . . Parts Recycled . | . . . Recycled Matter . | . . . Retrieved Matter . | . . . Retrieved Components . | . . . Parts Scanalyzed . | . . . Part Schematics Acquired . | . . . Parts Damaged . | . . . Bothacking | -11 -10 -10 ------------ Run | Yrd Mat Sub Used RIF Installer . | . . . Robots Hacked . | . . . Non-combat . | . . . Combat . | . . . Robot Hacks Applied . | . . . Relay Couplers Released . | . . . Fabnet Peak Effective % . | . . . Robots Rewired . | . . . Allies Hacked . | . . . Hacks Repelled . | . . . Allies | -11 -10 -10 -------- Run | Yrd Mat Sub Total Allies . | . . . Largest Group . | . . . Highest-Rated Group . | . . . Highest-Rated Ally . | . . . Total Orders . | . . . Ally Attacks . | . . . Total Damage . | . . . Kills . | . . . Allies Corrupted . | . . . Allies Melted . | . . . Intel | -11 -10 -10 ------- Run | Yrd Mat Sub Robot Analysis Total 2 | . 2 . Derelict Logs Recovered . | . . . Drone Launches . | . . . Drone Recoveries . | . . . Exploration | -11 -10 -10 ------------- Run | Yrd Mat Sub Turns Passed 2187 | 122 1143 922 Spaces Moved 1127 | 53 564 510 Core 16 | 16 . . Treads 1111 | 37 564 510 Legs . | . . . Wheels . | . . . Hover . | . . . Flight . | . . . Fastest Speed 50 | 50 160 160 Average Speed 159 | 157 160 160 Slowest Speed 200 | 200 160 160 Overloaded Moves . | . . . Propulsion Burnouts . | . . . Robots Hopped . | . . . Cave-ins Triggered . | . . . Exploration Rate (%) 41 | 4 78 41 Regions Visited 2 Branch Regions 1 Pre-discovered Areas . | . . . Known Exits Taken . | . . . Unknown Exits Taken 2 | 1 1 . Scrap Searched 2 | . . 2 Spaces Dug . | . . . Terrain Destroyed 1 | . 1 . Melee . | . . . Projectile 1 | . 1 . AOE . | . . . Terrain Rammed . | . . . Walls Destroyed . | . . . Machines Disabled . | . . . Actions | -11 -10 -10 --------- Run | Yrd Mat Sub Total 1340 | 72 691 577 Wait 61 | . 43 18 Move 1125 | 52 563 510 Hop . | . . . Pick Up 28 | 5 15 8 Fast Attach 7 | 7 . . Attach 5 | . 1 4 Detach . | . . . Swap 8 | . 6 2 Drop 16 | . 7 9 Fire 86 | 8 52 26 Melee . | . . . Ram . | . . . Kick . | . . . Crush 4 | . 4 . Escape Stasis . | . . . Rewire . | . . . Trap . | . . . Miscellaneous . | . . . Route ------- -11/Scrapyard -10/Materials (discovered 4 exits: [*Mat] / [*Min x2] / *Sub) -10/Subcaves History --------- Turn | Location | Event 2 | -11/Scrapyard | Met Revision 17 29 | -11/Scrapyard | Discovered new exit (range 16) 123 | -11/Scrapyard | Entered Materials 301 | -10/Materials | Discovered new exit (range 12) 304 | -10/Materials | Build established: Mutant 422 | -10/Materials | Discovered new exit (range 15) 945 | -10/Materials | Discovered new exit (range 15) 1257 | -10/Materials | Discovered new exit (range 3) 1266 | -10/Materials | Entered Subcaves 1304 | -10/Subcaves | Core integrity fell below 50% 1327 | -10/Subcaves | Core integrity fell below 20% 1513 | -10/Subcaves | A swath of the cavern ceiling suddenly collapsed 1652 | -10/Subcaves | Visited 4L-MR0's lab 1699 | -10/Subcaves | Found Flightbrick 2173 | -10/Subcaves | Shifting Twisted Machinery released Hvy. Riot Gun 2188 | -10/Subcaves | Destroyed by W1-R5Y(R) with Subdweller Beam Cannon Last Messages --------------- VL-GR5's Exoskeleton "Deathgrip" Powered Cannon 01693_ Dropped Lgt. Cannon. 01693_ Acquired Hvy. Assault Rifle. 01697_ Dropped Sub. Monowheel. 01698_ Dropped Corrupted Sub. Power Source. 01698_ Dropped Corrupted Sub. Machine Gun. 01699_ Acquired Flightbrick. 01719_ Acquired 6 matter. 01726_ Subatomizers dissect the Mining Laser. 01901_ Lgt. Treads destroyed. 01907_ Y-45 Defender destroyed. 01911_ Acquired 36 matter. 01913_ Heat Sink fries itself beyond repair. 01922_ Beam Rifle fries itself beyond repair. 01972_ Acquired 10 matter. 02030_ S-10 Pest destroyed. 02037_ Acquired 10 matter. 02039_ Flight Unit fries itself beyond repair. Hvy. Riot Gun falls loose from the Twisted Machinery. Map ----- +----------------------------------------------------+ | ?????????????????????????????????????????????????? | | ?????????????????????????????????????????????????? | | ?????????????????????????????????????????????????? | | ?????????????????????????????????????????????????? | | ?????????????????????????????????????????????????? | | ?????????????????????????????????????????????????? | | #????????????????????????????????????????????????? | | ##???????????????????????????????????????????????? | | #???????????????????????????????????????????????? | | #???????????????????????????????????????????????? | | #?###???????????????????????????????????????????? | | ### #???????????????????????????????????????????? | | ##???????????????????????????????????????????? | | #????????????????????????????????????????????? | | ## #??????????????##???????????""???????????????? | | # ######???##??? ??????####?" ????????????????? | | ## #### #??? ##??###" "## ?????????????????? | | # ## #? #?##""""" ?????????????????? | | ### ### #?? "" ??????????????????? | | ?## #??? [ ???????????????????? | | ## ### #??# #???????????????????? | | #??# ### #???????????????????? | | # #?## "#; ##??????????????????? | | ## ## ##?# " # #????#?????????????? | | ?### ####%%##??# &" #?? ####??????????? | | ???# # % #???# &"#@% #??? #####??????? | | ???# #???# " ## ##??? #??????? | | ???# #???#" " # R#???# #??????? | | ???# ###?## # ##### #???????? | | ???## #?# # ##?# ## #???????? | | ????### #?## # #?# ### #???????? | | ??????# ##?## ##?# ## ##???????? | | ??????## #?## # #?## ### #????????? | | ???????#### #?# ### ### ### ##???????? | | ??????????# ### ## ## ### ##??????? | | ??????????## ### ### #?## ####???? | | ??????????# #?## ##??# #???? | | ??????????# ## #?# ## ###??## ##??? | | ??????????##### ### ###### #??? | | ??????????????######## ###"% # ## ####??? | | ?????????????????????## #### %&# ##?????? | | ??????????????????????###### !%% ###??????? | | ??????????????????????????# # ##????????? | | ??????????????????????????# ### #?????????? | | ?????????????????????## ## # #?????????? | | ????????????????????# ##????????? | | ???????????????????# # % #????????? | | ???????????????????## ### # # % %##????????? | | ????????????????????### #??######## #?????????? | | ??????????????????????# ?????????# #?????????? | +----------------------------------------------------+ Best States ------------- Heat Dissipation 25 Energy Generation 10 Energy Capacity 265 Matter Stores 300 Matter Capacity 300 Sight Range 16 Terrain Scan Range 16 Terrain Scan Density 10 Evasion (%) 40 Recoil Reduction 2 Item Schematics ----------------- Huge Storage Unit | -10/Materials | Hacked Hcp. Storage Unit | -10/Materials | Hacked Robot Schematics ------------------ None Fabricated ------------ Nothing Alien Tech Used ----------------- None Achievements -------------- None Challenges ------------ None Game ------ Seed CooledArmoredChainsword Manual? 0 Play Time 00:19:00 Cumulative 66.5 hours Start 2024.08.23 @ 13:23:46 End 2024.08.23 @ 13:42:34 Sessions 1 Manual Loads 0 Difficulty Rogue Special Mode None Game No. 88 Rogue 88 Adventurer 0 Explorer 0 Win Type - Total 1 Types 1/0/0/0/0/0/0/0/0 Lore% 23 Gallery% 43 Achievement% 40 Wizard Run 0 Options --------- Layout 1 ASCII 0 Keyboard 0 Movement Mouse Keybinds 0 Fullscreen 1 Font 16/SmallcapsGlow Map View 55x38 Zoom Use 0% Tactical HUD 1 Map Filters NONE Filters NONE Steam 1 RUN: 7ddf741d-624b-4e38-89ef-5227acdacf10